Workbook

Sheet Sheet1
B2: AVOCADO GROVE PRODUCTION REPORT APPROX 1200 TREES
A3: YEAR | B3: BINS | C3: APPROX POUNDS | D3: FRUIT INCOME | E3: PICKING | F3: AVOCADO BOARDS | G3: LEAF & SOIL | H3: WATER | I3: FERTILIZER | J3: ROAD REPAIRS | L3: PROFIT/LOSS | M3: Avg Price/LB
A4: 2008 | B4: 186 | C4: 167400 | D4: 160204 | E4: 26800 | F4: 8347 | H4: 21267 | I4: 2905 | L4: =SUM(D4-E4-F4-G4-H4-I4-K4) -> 100885 | M4: 0.96
A5: 2009 | B5: 49 | C5: 44100 | D5: 47480 | E5: 5655 | F5: 2298 | H5: 37431 | I5: 2254 | L5: -158 | M5: 1.08
A6: 2010 | B6: 140 | C6: 126700 | D6: 107125 | E6: 15440 | F6: 5153 | H6: 30492 | I6: 3991 | L6: 52049 | M6: 0.85
A7: 2011 | B7: 81 | C7: 72900 | D7: 106720 | E7: 9899 | F7: 3380 | H7: 43692 | I7: 4778 | L7: 44971 | M7: 1.46
A8: 2012 | B8: 142 | C8: 127800 | D8: 115004 | E8: 21411 | F8: 4571 | H8: 46070 | I8: 8381 | L8: 34571 | M8: 0.9
A9: 2013 | B9: 203 | C9: 182700 | D9: 131390 | E9: 29723 | F9: 6761 | H9: 47054 | I9: 5800 | L9: 42052 | M9: 0.72
A10: 2014 | B10: 45 | C10: 40500 | D10: 47975 | E10: 7486 | F10: 2166 | H10: 50803 | I10: 0 | L10: -12480 | M10: 1.18
A11: 2015 | B11: 37 | C11: 33320 | D11: 33012 | E11: 4450 | F11: 1411 | H11: 45203 | I11: 4621 | L11: -22673 | M11: 0.99
A12: 2016 | B12: 90 | C12: 80100 | D12: 126404 | E12: 15134 | F12: 4372 | H12: 48062 | I12: 5620 | J12: 1000 | L12: =SUM(D12-E12-F12-G12-H12-I12-J12-K12) -> 52216 | M12: 1.58
A13: 2017 | B13: 49 | C13: 42607 | D13: 68036 | E13: 7808 | F13: 2484 | H13: 38575 | I13: 6850 | L13: 12319 | M13: 1.6
A14: 2018 | B14: 84 | C14: 75493 | D14: 80566 | E14: 14534 | F14: 3716 | H14: 48851 | I14: 4230 | L14: 9235 | M14: 1.07
A15: 2019 | B15: 109 | C15: 98470 | D15: 189836 | E15: 21027 | F15: 6699 | G15: 40 | H15: 45592 | I15: 5025 | L15: 111453 | M15: 1.93
A16: 2020 | B16: 100 | C16: 92758 | D16: 71623 | E16: 19449 | F16: 3805 | G16: 151 | H16: 51204 | I16: 7586 | L16: -10572 | M16: 0.77
A17: 2021 | B17: 84 | C17: 75465 | D17: 88221 | E17: 17285 | F17: 3464 | G17: 131 | H17: 53609 | I17: 8956 | L17: 4776 | M17: 1.17
A18: 2022 | B18: 19 | C18: 17152 | D18: 27940 | E18: 3945 | F18: 907 | G18: 154 | H18: 61250 | L18: -38316 | M18: 1.63
A19: 2023* | B19: 85 | C19: 77514 | D19: 76021 | E19: 17000 | F19: 3067 | G19: 172 | H19: 40480 | I19: 7799 | L19: =SUM(D19-E19-F19-G19-H19-I19-J19-K19) -> 7503 | M19: 0.98
A20: 2024 | B20: 34 | C20: 31687 | D20: 35682 | E20: 7921 | F20: 1607 | G20: 193 | H20: 54410 | I20: 7791 | L20: =SUM(D20-E20-F20-G20-H20-I20-J20-K20) -> -36240 | M20: 1.13
A21: 2025 | B21: 130 | H21: 33724 | I21: 2877
A24: AVERAGE | B24: =SUM(B4:B23)/12 -> 138.9166667 | C24: =SUM(C4:C23)/12 -> 115555.5 | D24: =SUM(D4:D23)/12 -> 126103.25 | E24: =SUM(E4:E23)/12 -> 20413.91667 | F24: =SUM(F4:F23)/12 -> 5350.666667 | H24: =SUM(H4:H23)/12 -> 66480.75 | I24: =SUM(I4:I23)/12 -> 7455.333333 | L24: =SUM(L4:L23)/12 -> 29299.25 | M24: =SUM(M4:M23)/12 -> 1.666666667
A26: TOTALS | B26: =SUM(B4:B25) -> 1805.916667 | C26: =SUM(C4:C23) -> 1386666 | D26: =SUM(D4:D23) -> 1513239 | E26: =SUM(E4:E23) -> 244967 | F26: =SUM(F4:F23) -> 64208 | H26: =SUM(H4:H23) -> 797769 | I26: =SUM(I4:I23) -> 89464 | L26: =SUM(L4:L23) -> 351591
A28: ANNUAL NOTES:
A29: 2008-18 Leaf & Soil Analysis was performed. Could not find statements for those years.
A30: 2009 Production was down after fires in October 2007. 1/3 of grove was stumped for regrowth in April 2008.
A31: 2010-More trees stumped for regrowth, thus a smaller crop for 2011.
A32: 2014-2018 Grove was negected due to other family priorities, subsequently affecting production from 2014-2018.
A33: 2019 Crop Size for Industry as well as Internationally, resulting in record pricing and returns.
A34: 2020 Prices plummeted to Covid-19 affecting demand.
A35: 2021 Avocado prices rebounded from Covid-19 Shut down (40% of market). Pruning trials in effect. Trees recovering from 2020 late summer heat storm. Aggressive pruning trial performed.
A36: 2022 VOLUME IS DOWN INDUSTRY WIDE. Most suspect harsh Heat @ end of 2020 damaged trees for 2021 Flowering cycle.
A37: *2023 Crop was probably closer to 140 bins, but due to low pricing we held Harvest til July, thus allowing fruit to drop while pricing and fruit size were down.
A38: 2024 Crop was adversely effected from holding 2023 crop too long. Trees were stressed during flowering and could not maintain two crops at once (2023-2024)
A39: 2025 Crop is proving to be a big crop. We have harvested 130 bins as of 7/23. Finishing size pick Friday 7/25. Approximately 30-40 more bins remain on trees to size up.Total bins for 2025 could reach 175.
A41: OWNER NOTES:
A42: Labor costs vary depending on owner/management style. I used to do most of the labor. Currently I have a helper that I pay $20/hr. Management companies are available as well as Neighbors Grove manager.
A43: Avocado Grove was planted in 1976. With proper pruning techniques, these Avocado trees will continue to produce for decades.
A44: After 20 years of owning the Grove, I am selling because I find myself focusing less and less on the Grove, and more time on other business ventures. I would also like to move closer to family in the Midwest.
A45: Current water comes from Rainbow Municipal Water District. No wells on Grove. Other groves in area have wells.
A46: POSSIBLE RENTAL INCOME FROM RESIDENCE COULD BE $25,000-30,000. ADDITIONAL RENTALS COUD BE ADDED WITH RVS ON PAD OR THROUGHOUT GROVE
A48: STATE OF GROVE:
A49: Current state of the grove is very healthy. Continual pruning of trees to under 15' would create more productive trees that will get better use from irrigation and fertilizer uptake.
A50: Shorter trees will also have stronger root systems and canopies that creates higher yield as well as being less labor intensive to harvest.
A52: If future owners' continue to prune trees with aggressive fertilizing, grove is trending toward much larger yields like the 2012-2013 crops. Grove could conceivably see 15-20,000 pounds per acre.
